Workbook

Sheet CF_D
B2: Konzern-Kapitalflussrechnung (IFRS)
B3: vom 1. Oktober 2016 bis 31. März 2017
C4: 2016/17 1.10.16 bis 31.03.17 | D4: 2015/16 1.10.15 bis 31.03.16
C5: Tsd. € | D5: Tsd. €
B6: Cashflow aus der gewöhnlichen Geschäftstätigkeit:
B7: Konzernergebnis | C7: =61738+2087 -> 63825 | D7: 49326
B8: Anpassung zur Überleitung des Konzernergebnisses zur Nettoveränderung der liquiden Mittel aus laufender Geschäftstätigkeit:
B9: Ertragsteueraufwand | C9: 29147 | D9: 22203
B10: Zinserträge / Zinsaufwendungen | C10: 743 | D10: 1447
B11: Ergebnis aus At-Equity bewerteten Finanzanlagen | C11: 0 | D11: 820
B12: Ergebnis aus der Veräußerung des hydrophilen IOL-Geschäftes Aaren Inc. | C12: -7721 | D12: 0
B13: Abschreibungen | C13: 11186 | D13: 9382
B14: Gewinne/Verluste aus Abgang/Abwertung von Anlagevermögen | C14: -18 | D14: 230
B15: Erhaltene Zinsen | C15: 384 | D15: 361
B16: Gezahlte Zinsen | C16: -707 | D16: -802
B17: Erstattete Ertragsteuern | C17: 5476 | D17: 251
B18: Gezahlte Ertragsteuern | C18: -33875 | D18: -19782
B19: Veränderungen des Working Capitals:
B20: Forderungen aus Lieferungen und Leistungen | C20: -24419 | D20: -60
B21: Vorräte | C21: -18559 | D21: -13486
B22: Sonstige Vermögenswerte | C22: 1355 | D22: -1732
B23: Verbindlichkeiten aus Lieferungen und Leistungen | C23: -92 | D23: -8760
B24: Rückstellungen und finanzielle Verbindlichkeiten | C24: -5896 | D24: 9953
B25: Sonstige Verbindlichkeiten | C25: -4340 | D25: -6559
B26: Gesamte Anpassungen | C26: =SUM(C9:C25) -> -47336 | D26: =SUM(D9:D25) -> -6534
B27: Netto-Kapitalzufluss/(-abfluss) aus der gewöhnlichen Geschäftstätigkeit | C27: =+C7+C26 -> 16489 | D27: =+D7+D26 -> 42792
B28: Cashflow aus der Investitionstätigkeit:
B29: Investitionen in Sachanlagen | C29: -5974 | D29: -4278
B30: Investitionen in sonstige immaterielle Vermögenswerte | C30: -7657 | D30: -6055
B31: Erlöse aus dem Verkauf von Anlagevermögen | C31: 224 | D31: 42
B32: Erwerb von nach der Equity Methode bilanzierten Beteiligungen und Vermögenswerten | C32: 0 | D32: -4131
B33: Auszahlungen für sonstige Ausleihungen | C33: =-2131-269 -> -2400 | D33: -823
B34: Einzahlungen aus Festgeldanlagen | C34: 0 | D34: 110000
B35: Erwerb von Anteilen an verbundenen nicht-konsolidierten Unternehmen | C35: =-(4128+4472+5750)/1.0573 -> -13572.30682 | D35: 0
B36: Einzahlungen aus der Veräußerung des hydrophilen IOL-Geschäftes Aaren Inc. | C36: 9289 | D36: 0
B37: Netto-Kapitalzufluss/(-abfluss) aus der Investitionstätigkeit | C37: =SUM(C29:C36) -> -20090.30682 | D37: =SUM(D29:D36) -> 94755
B38: Cashflow aus der Finanzierungsstätigkeit:
B39: Aufnahme/(Rückzahlung) der kurzfristigen Kredite | C39: -193 | D39: -178
B40: Aufnahme/(Rückzahlung) der langfristigen Kredite | C40: -343 | D40: -244
B41: (Zunahme)/Abnahme der Forderungen aus Finanzausgleich | C41: =-323425+656 -> -322769 | D41: -138172
B42: Zunahme/(Abnahme) der Verbindlichkeiten aus Finanzausgleich | C42: 14449 | D42: -3820
B43: Zunahme/(Abnahme) der Verbindlichkeiten aus Finanzierungsleasing | C43: -1499 | D43: -1205
B44: Einzahlungen aus Kapitalerhöhung (netto) | C44: =(8130.96*38.94)-(8130.96*38.94)*0.005 -> 315036.4845 | D44: 0
B45: Netto-Kapitalzufluss/(-abfluss) aus der Finanzierungsstätigkeit | C45: =SUM(C39:C44) -> 4681.484488 | D45: =SUM(D39:D44) -> -143619
B46: Einfluss von Wechselkursänderungen auf Zahlungsmittel und Zahlungsmitteläquivalente | C46: =174-656 -> -482 | D46: -209
B47: Zunahme/(Abnahme) der Zahlungsmittel und Zahlungsmitteläquivalente | C47: =+C27+C37+C45+C46 -> 598.1776687 | D47: =+D27+D37+D45+D46 -> -6281
B48: Zahlungsmittel und Zahlungsmitteläquivalente am Beginn des Berichtszeitraumes | C48: 8710 | D48: 13041
B49: Zahlungsmittel und Zahlungsmitteläquivalente am Ende des Berichtszeitraumes | C49: =+C47+C48 -> 9308.177669 | D49: =+D47+D48 -> 6760
B50: Der nachfolgende Konzernanhang ist integraler Bestandteil des ungeprüften Konzernabschlusses.

Sheet Bilanzanalyse (hidden)
A1: Abw. Dec./ Sep | C1: Begründung | D1: davon erklärt | E1: Differenz
A2: =#REF! ->  | B2: Geschäfts- oder Firmenwert | C2: Zugang IMEX 7,432 Mio. | D2: =7432 -> 7432 | E2: =A2-D2 -> 
A3: =#REF! ->  | B3: Immaterielle Vermögenswerte | C3: Zugang IMEX 5,551 Mio.
A4: =#REF! ->  | B4: Sachanlagen | C4: Zugang CZM AG 4,0 Mio. vor Afa (hauptsächlich Olymp ca. 3,2 Mio.); Übernahme Mietgeräte bei CZM VG aus Umlaufvermögen (+1,2 Mio.)
A5: =#REF! ->  | B5: Forderungen aus Lieferungen und Leistungen | C5: hierin enthalten 2,9 Mio. Alcon-Lizenzen, Cash-Zahlung erfolgt erst im Januar
A6: =#REF! ->  | B6: Forderungen gegen nahe stehende Unternehmen | C6: v.a. Umsatzanstieg Q1 CZM AG (Umsatz je Quartal: GJ 10/11 --> 113 Mio., Q1 11/12 --> 141 Mio.)
A7: =#REF! ->  | B7: Sonstige kurzfristige finanzielle Vermögenswerte | C7: Anstieg aus CZM Inc. aufgrund der Umgliederung der Kreditkartenforderungen von kurzf. Nicht-finanz. Vw in kurzf. Finanz. Vermögenswerte (+1,3 Mio.). Anstieg CZM AG (+0,3 Mio.) für Zinsabgrenzungen (COBA + HVB) | D7: =1300+300 -> 1600 | E7: =A7-D7 -> 
A8: =#REF! ->  | B8: Sonstige kurzfristige nicht-finanzielle Vermögenswerte | C8: Kompensation des Umgliederungseffektes USA durch CZM F (+0,6 Mio., u.a. UST, ARAP), CZM AG (+0,4 Mio.)
A9: 1207 | B9: Andere langfristige Rückstellungen | C9: IMEX earn out Anteil +2,218 Mio.; Kompensation durch CZM AG (-915 TEUR ATZ, -142 TEUR Verbrauch ERA RST und sonstiges) | D9: =(2.218-0.915-0.142)*1000 -> 1161 | E9: 46
A10: =#REF! ->  | B10: Kurzfristige Rückstellungen | C10: IMEX earn out Anteil +2,149 Mio., Abgrenzung KöSteuer +1,5 Mio. (CZM AG), RST für Gewährleistungen pauschal +0,55 Mio. (CZM AG), Konzernrückstellung Q1 für Projekttehmen +0,85 Mio., Auflösung RST für Bonuszahlung im Dezember + RST-Bildung für geschätzte Logistikosten (CZM Japan), Zuführung RST CZM Inc. für Ferien, Warenrückgabe und Gewährleistung | D10: =(2.149+1.5+0.55+0.85)*1000 -> 5049
A11: =#REF! ->  | B11: Kurzfristige abgegrenzte Verbindlichkeiten | C11: Auszahlung Renumeration für FY 10/11 CZM VG -0,8 Mio. (hier auch Reduzierung RST für ausstehende Rechnung enthalten) und USA -3,1 Mio. (u.a. MBO-Bonus, Super-Bonus); z.T. Kompensation/ Anstieg durch unterjährige Rechnungsabgrenzungen + Risiken CZM AG +1,36 Mio. (davon 0,6 Mio. Konzern-RST bzw. 0,3 Mio. CZM-Verbundene, die im Konzern wieder eliminiert werden); CZM SAS + FCI -04 Mio. Rückgang Personalverbindlichkeiten aufgrund erfolgter Bonuszahlung im Dez 11 | D11: =(-0.8-3.1+1.36-0.3-0.4)*1000 -> -3240
A12: =#REF! ->  | B12: Kurzfristige finanzielle Verbindlichkeiten | C12: Devisentermingeschäfte CZM AG +3,3 Mio. EUR, Reduzierung ausstehende Checks USA aufgrund von Lieferantenzahlungen -0,6 Mio. | D12: =(3.3-0.6)*1000 -> 2700
A13: =#REF! ->  | B13: Verbindlichkeiten aus Lieferungen und Leistungen | C13: CZM AG: Umstellung Lieferantenzahlungen auf tägliche Zahlungen nach Fälligkeit ab Q1 2012 (-3,9 Mio.)
A14: =#REF! ->  | B14: Sonstige kurzfristige nicht-finanzielle Verbindlichkeiten | C14: CZM AG: Lohnsteuerverbindlichkeiten +2,0 Mio. (Prämienzahlung 31.12.) , Lizenzen Alcon +2,2 Mio. Erhaltene Anzahlungen -1,0 Mio., CZM VG: Erhöhung "erhaltene Anzahlungen" und Lohnsteuerverbindlichkeiten zum 31.12. (+0,6 Mio.) CZM Inc: Service-RST (+0,5 Mio.), abgegrenzter Service-Ertrag (+0,4 Mio.) CZM Japan: Bonuszahlung Dez 11 (+0,4 Mio.), Kundenvorauszahlungen OPMI Lumera + Vario (+0,5 Mio.), U-Anteil soziale Sicherheit (+0,2 Mio.) CZM Spanien: abgegrenter Ertrag (+0,3 Mio.) | D14: =(2+2.2-1+0.6+0.5+0.4+0.4+0.5+0.2+0.3)*1000 -> 6100
